bitfinex/quotes_ETHUSD_20250123
["timestamp","ask_amount","ask_price","bid_price","bid_amount"]
[1737668934982,3.07892,3247.9,3247.5,0.03798249]
[1737668935382,3.07886,3248.0,3247.3,3.07946]
[1737668935585,3.07886,3248.0,3247.6,0.03790729]
[1737668935905,3.07886,3248.0,3247.7,0.03784255]
[1737668936111,0.0161,3248.1,3247.0,0.8035]
[1737668936269,3.07976,3247.1,3246.7,0.7746]
[1737668936467,3.07976,3247.1,3246.4,0.2488]
[1737668936468,0.55,3246.9,3246.4,0.2488]
[1737668936669,3.62986,3246.9,3246.8,0.03676164]
[1737668936869,3.08008,3246.7,3246.4,0.2488]
[1737668937109,3.07969,3247.1,3246.5,3.11718598]
[1737668937608,3.07978,3247.0,3246.5,0.03695598]
[1737668938163,0.55,3247.2,3246.5,3.11711598]
[1737668938313,0.55,3247.2,3246.6,0.7746]
[1737668938524,0.0161,3247.5,3246.7,0.03703528]
[1737668938829,0.55,3247.4,3246.7,0.03703528]
[1737668941317,0.55,3247.4,3246.4,0.2488]
[1737668941533,0.55,3247.4,3246.5,0.03716485]
[1737668941862,0.0161,3247.5,3246.7,0.7746]
[1737668942175,0.0161,3247.5,3246.8,0.03697051]
[1737668942384,3.07952,3247.3,3246.8,0.03697051]
[1737668942693,0.55,3247.4,3246.8,3.11690051]
[1737668942879,0.55,3247.4,3246.8,3.03697051]
[1737668943088,3.07893,3247.9,3247.4,3.8178]
[1737668943383,3.07901,3247.8,3247.5,0.72624218]
[1737668943532,3.07901,3247.8,3247.5,0.03651718]
[1737668943949,3.07919,3247.6,3247.5,0.03651718]
[1737668944150,3.62908,3247.8,3247.5,0.03651718]
[1737668944597,3.62919,3247.6,3247.5,0.03651718]
[1737668944959,3.07965,3247.2,3247.0,0.8178]
[1737668945283,3.07944,3247.4,3247.1,0.0367762]
[1737668945789,3.07957,3247.2,3247.1,0.0367762]
[1737668945990,3.64567,3247.2,3247.1,0.0367762]
[1737668946192,3.08024,3246.5,3246.2,0.8178]
[1737668948692,3.08024,3246.5,3245.8,0.8178]
[1737668948998,3.08024,3246.5,3245.8,3.89864]
[1737668949291,3.08024,3246.5,3245.9,6.0808]
[1737668949972,3.08024,3246.5,3245.9,3.0]
[1737668950680,3.08024,3246.5,3245.9,2.80206244]
[1737668950882,0.0161,3246.1,3244.7,0.940739]
[1737668951083,3.08169,3245.0,3244.7,0.167039]
[1737668951291,3.08185,3244.8,3244.7,0.167039]
[1737668951663,3.08185,3244.8,3244.7,0.20333068]
[1737668951858,0.37921594,3246.0,3244.7,0.167039]
[1737668952082,0.25,3246.6,3244.7,0.167039]
[1737668952083,0.0161,3245.9,3245.1,3.08156]
[1737668952291,3.08063,3246.1,3245.3,0.7986]
[1737668952489,3.08073,3246.0,3245.3,0.7986]
[1737668952732,3.08073,3246.0,3245.4,0.03583777]
[1737668952863,3.08073,3246.0,3245.4,3.11709777]
[1737668953059,3.08063,3246.1,3245.4,3.11709777]
[1737668953260,3.08063,3246.1,3245.4,1.06636915]
[1737668953564,0.60836103,3246.4,3245.4,0.03583777]
[1737668953565,3.08074,3246.0,3245.4,0.03583777]
[1737668953777,3.08081,3245.9,3245.4,0.03583777]
[1737668954102,3.08091,3245.8,3245.4,0.03583777]
[1737668954262,3.08107,3245.7,3245.4,0.03583777]
[1737668954461,3.08114,3245.6,3245.4,0.03583777]
[1737668954664,0.55,3245.7,3245.4,0.03583777]
[1737668955301,3.08073,3246.0,3245.4,0.03583777]
[1737668955498,3.08083,3245.9,3245.4,0.03583777]
[1737668955703,3.08073,3246.0,3245.4,0.03583777]
[1737668956289,3.08084,3245.9,3245.4,0.03583777]
[1737668956499,3.0809,3245.8,3245.4,0.03583777]
[1737668956816,3.08073,3246.0,3245.4,0.03583777]
[1737668956993,3.08082,3245.9,3245.4,0.03583777]
[1737668957313,3.08073,3246.0,3245.4,0.03583777]
[1737668957516,3.08073,3246.0,3245.5,3.0]
[1737668957681,3.08073,3246.0,3245.6,0.03570811]
[1737668958015,3.08073,3246.0,3245.4,3.0]
[1737668958238,3.08052,3246.2,3245.3,3.87997]
[1737668958239,3.08082,3245.9,3245.7,0.03564329]
[1737668958393,0.0161,3246.7,3245.4,3.85234]
[1737668958711,0.55,3246.5,3245.5,0.03594343]
[1737668958917,3.081,3245.7,3245.5,0.03594343]
[1737668959077,3.08109,3245.6,3245.5,0.03594343]
[1737668959678,3.08109,3245.6,3245.2,0.8043]
[1737668959894,3.08109,3245.6,3245.3,0.03607309]
[1737668960089,3.08109,3245.6,3245.2,0.8043]
[1737668960297,3.08109,3245.6,3245.3,0.03607309]
[1737668960490,3.08109,3245.6,3245.2,0.8043]
[1737668960689,3.08109,3245.6,3245.3,0.03607309]
[1737668960915,3.0812,3245.5,3245.3,0.03607309]
[1737668961085,3.0812,3245.5,3245.2,0.8043]
[1737668961416,3.0812,3245.5,3245.3,0.03607309]
[1737668961718,3.0812,3245.5,3245.3,3.09e-06]
[1737668961719,3.64738,3245.4,3245.3,3.09e-06]
[1737668961921,3.63185,3244.8,3244.7,0.167039]
[1737668963719,3.64795,3244.8,3244.7,0.167039]
[1737668964788,3.63185,3244.8,3244.7,0.167039]
[1737668965323,4.25785142,3244.8,3244.7,0.167039]
[1737668965883,3.08185,3244.8,3244.7,0.167039]
[1737668966289,3.08149,3245.2,3244.7,0.20057488]
[1737668966535,0.0161,3245.6,3244.7,0.167039]
[1737668966689,3.08106,3245.7,3245.0,3.08165]
[1737668967022,3.08105,3245.7,3245.1,3.03372209]
[1737668967223,0.62940638,3246.0,3245.1,0.03372209]
[1737668967224,3.08147,3245.2,3245.1,0.03372209]
[1737668967422,3.63147,3245.2,3245.1,0.03372209]
[1737668967621,3.63147,3245.2,3244.7,0.167039]
[1737668967622,0.55,3245.1,3244.7,0.167039]
[1737668967925,3.08185,3244.8,3244.7,0.167039]
[1737668968986,0.55,3244.9,3244.7,0.167039]
[1737668969523,0.55,3244.9,3244.8,0.03386092]
[1737668969724,3.08147,3245.2,3244.7,0.167039]
[1737668969906,3.08147,3245.2,3244.8,0.03386092]
[1737668970100,3.08147,3245.2,3244.7,3.167039]
[1737668970307,3.08128,3245.4,3244.8,3.11574922]
[1737668970819,0.55,3245.5,3244.8,0.03389922]
[1737668971129,3.63175,3244.9,3244.8,0.03389922]
[1737668971328,3.08138,3245.3,3244.8,0.03389922]
[1737668971624,6.49755178,3246.3,3244.8,0.03389922]
[1737668971625,3.08098,3245.8,3245.1,3.0]
[1737668971825,3.08098,3245.8,3245.1,3.08154]
[1737668972125,3.08098,3245.8,3245.2,0.03353662]
[1737668972301,0.0161,3246.5,3245.7,3.08093]
[1737668972657,0.0161,3246.5,3245.9,3.0808]
[1737668972658,3.08024,3246.5,3245.9,3.0808]
[1737668972790,3.08052,3246.2,3245.8,0.03301416]
[1737668972990,3.08052,3246.2,3245.6,6.08105]
[1737668973254,3.08052,3246.2,3245.7,0.03322864]
[1737668973534,0.55,3246.1,3245.6,3.0]
[1737668973693,3.08071,3246.0,3245.7,0.03322864]
[1737668973896,3.63056,3246.2,3245.7,0.03322864]
[1737668974096,0.62030028,3246.6,3245.8,0.8013]
[1737668974307,0.62030028,3246.6,3245.9,0.03309901]
[1737668974520,0.55,3246.5,3245.8,0.8013]
[1737668974703,0.55,3246.3,3245.8,0.8013]
[1737668974917,3.08033,3246.4,3245.9,0.03309901]
[1737668976019,3.08051,3246.3,3245.9,0.03309901]
[1737668976214,3.08054,3246.2,3245.9,0.03309901]
[1737668976431,3.08088,3245.9,3245.5,0.7831]
[1737668976808,3.0809,3245.8,3245.5,0.7831]
[1737668977628,3.08127,3245.5,3245.1,0.8022]
[1737668978031,3.08138,3245.3,3245.1,0.8022]
[1737668978239,3.08154,3245.2,3244.8,0.8022]
[1737668978395,3.08175,3244.9,3244.7,0.167039]
[1737668978897,3.08185,3244.8,3244.7,0.167039]
[1737668979519,3.63185,3244.8,3244.7,0.167039]
[1737668982715,4.26365928,3244.8,3244.7,0.167039]
[1737668983425,3.08284,3243.8,3243.2,0.806]
[1737668983628,3.08291,3243.7,3243.2,0.806]
[1737668983939,3.08291,3243.7,3243.2,3.806]
[1737668984247,3.08291,3243.7,3243.3,0.03430493]
[1737668984409,3.0831,3243.5,3243.3,0.03430493]
[1737668984604,3.0831,3243.5,3243.2,0.806]
[1737668984927,0.55,3243.4,3243.3,0.0346846]
[1737668985130,3.63318,3243.4,3243.3,0.0346846]
[1737668985314,0.55,3243.4,3242.8,0.7704]
[1737668985637,0.55,3243.2,3242.9,0.03471599]
[1737668985847,3.63339,3243.2,3242.9,0.03471599]
[1737668986464,0.55,3243.0,3242.9,0.03471599]
[1737668986646,3.63356,3243.0,3242.9,0.03471599]
[1737668986815,3.63356,3243.0,3242.1,3.85481]
[1737668986816,3.08369,3242.9,3242.1,3.85481]
[1737668987019,0.55,3242.8,3242.1,0.7704]
[1737668987226,0.55,3242.8,3242.2,0.03516787]
[1737668987460,0.0161,3243.2,3242.1,0.7704]
[1737668987625,3.08329,3243.3,3242.5,3.08396]
[1737668987939,3.08329,3243.3,3242.1,0.7704]
[1737668987940,0.55,3242.8,3242.2,3.03525781]
[1737668988337,0.55,3242.8,3242.3,3.0]
[1737668988536,0.55,3242.7,3242.3,3.0]
[1737668988760,0.55,3242.7,3242.4,0.03516295]
[1737668989869,0.55,3242.7,3242.1,6.85481]
[1737668990154,0.55,3242.7,3242.3,3.0]
[1737668990321,0.55,3242.8,3242.4,0.03537156]
[1737668990523,0.55,3242.8,3242.1,3.85481]
[1737668990743,0.55,3242.8,3242.2,0.03533814]
[1737668991153,0.55,3242.7,3242.3,3.0]
[1737668991478,3.08348,3243.1,3242.4,3.08413]
[1737668991617,3.08348,3243.1,3242.5,3.08399]
[1737668991822,3.6336,3243.0,3242.5,0.03523365]
[1737668992857,0.55,3243.2,3242.5,0.03523365]
[1737668993220,0.55,3243.0,3242.5,3.11926365]
[1737668993628,3.08358,3243.0,3242.5,0.03523365]
[1737668993959,3.63343,3243.2,3242.5,3.08403]
[1737668994183,0.55,3243.0,3242.6,0.03506791]
[1737668995048,0.55,3242.8,3242.6,0.03506791]
[1737668995254,3.63383,3242.8,3242.6,0.03506791]
[1737668995491,0.55,3242.8,3242.1,3.85476]
[1737668995703,0.55,3242.6,3242.1,3.85476]
[1737668998383,3.08348,3243.1,3242.3,3.08416]
[1737668998594,3.08368,3242.9,3242.2,6.08429]
[1737668998890,0.55,3242.8,3241.5,35.167039]
[1737668999114,3.63489,3241.6,3241.5,0.167039]
[1737669001170,3.0864,3240.1,3239.6,0.751]
[1737669001370,3.0864,3240.1,3239.4,3.2056349]
[1737669001371,0.55,3240.3,3239.7,0.03636467]
[1737669001591,0.0161,3240.6,3239.4,3.2056349]
[1737669001592,3.08628,3240.2,3239.4,3.2056349]
[1737669001763,3.63689,3239.5,3239.4,3.2056349]
[1737669003306,0.0161,3239.5,3238.2,0.956139]
[1737669003470,3.63804,3238.3,3238.2,0.167039]
[1737669003675,3.08804,3238.3,3238.2,0.167039]
[1737669004674,3.08777,3238.6,3238.2,0.167039]
[1737669004872,0.0161,3239.0,3238.2,0.167039]
[1737669005070,0.64219145,3239.0,3238.3,0.0375893]
[1737669005407,0.64219145,3239.0,3238.2,0.167039]
[1737669005408,3.0876,3238.8,3238.4,0.03790227]
[1737669005608,3.08769,3238.7,3238.2,0.167039]
[1737669005905,3.08756,3238.8,3238.3,0.03796738]
[1737669006411,3.08756,3238.8,3238.4,0.03790227]
[1737669006606,0.62609145,3239.0,3238.4,3.08787]
[1737669006807,3.08719,3239.2,3238.5,0.03783716]
[1737669007012,3.08719,3239.2,3238.6,35.0]
[1737669007218,0.60474041,3239.5,3238.7,3.12530163]
[1737669007383,0.60474041,3239.5,3239.0,0.7891]
[1737669007706,0.60474041,3239.5,3239.1,0.03731411]
[1737669007894,0.0161,3239.8,3239.1,0.03731411]
[1737669008100,3.08672,3239.7,3239.1,0.03731411]
[1737669008299,3.08661,3239.8,3239.1,0.03731411]
[1737669008495,3.08631,3240.2,3239.1,0.42870052]
[1737669008699,3.08631,3240.2,3239.4,6.08695]
[1737669008881,3.08631,3240.2,3239.4,3.0]
[1737669009206,3.08631,3240.2,3239.5,0.03692137]
[1737669009597,0.0161,3240.6,3239.5,0.03692137]
[1737669009598,3.0868,3239.6,3239.5,0.03692137]
[1737669009783,3.08712,3239.3,3238.6,0.752]
[1737669009983,3.08712,3239.3,3238.7,0.03622289]
[1737669010196,3.0872,3239.2,3238.7,0.03622289]
[1737669010517,0.60962956,3239.6,3238.7,0.03622289]
[1737669010692,3.0869,3239.5,3238.8,3.08756]
[1737669011192,3.10352,3239.0,3238.9,0.0360927]
[1737669011406,3.08758,3238.8,3238.2,0.167039]
[1737669011577,3.08758,3238.8,3238.3,0.03523336]
[1737669011781,3.08742,3239.0,3238.2,3.255129]
[1737669011980,0.0161,3239.4,3238.3,0.03523336]
[1737669012308,3.08708,3239.3,3238.3,0.03523336]
[1737669012511,3.08794,3238.4,3238.3,0.03523336]
[1737669012875,3.08804,3238.3,3238.2,0.167039]
[1737669013490,3.08804,3238.3,3238.2,0.20233747]
[1737669013686,3.08756,3238.8,3238.2,0.167039]
[1737669013875,0.0161,3239.0,3238.2,0.20233747]
[1737669014087,3.63804,3238.3,3238.2,7.47e-06]
[1737669014279,0.5661,3238.2,3236.6,3.08964]
[1737669014479,3.08902,3237.3,3236.6,3.08964]
[1737669014708,3.08902,3237.3,3236.7,0.03386472]
[1737669014876,3.08902,3237.3,3236.6,3.08964]
[1737669015075,0.308902,3237.3,3236.3,0.7802]
[1737669015288,3.08924,3237.1,3236.1,3.0901]
[1737669015487,3.08924,3237.1,3236.0,0.7802]
[1737669015720,3.08937,3236.9,3236.2,3.12422067]
[1737669015916,3.08924,3237.1,3236.2,3.09003]
[1737669016075,0.308902,3237.3,3236.3,0.34655406]
[1737669016282,3.08899,3237.3,3236.4,3.08985]
[1737669016475,3.08881,3237.5,3236.3,0.03412547]
[1737669016476,3.08938,3236.9,3236.3,3.0]
[1737669016688,3.08938,3236.9,3236.0,0.7802]
[1737669016689,0.60228016,3237.5,3236.6,3.08962]
[1737669016887,3.08899,3237.4,3236.6,3.08962]
[1737669017094,3.08899,3237.4,3236.7,0.03495282]
[1737669017388,3.69116016,3237.5,3236.7,0.03495282]
[1737669017582,3.08894,3237.4,3236.7,0.03495282]
[1737669017783,0.60228016,3237.5,3236.9,0.7826]
[1737669018019,3.08845,3237.9,3237.0,3.1239573]
[1737669018182,3.08833,3238.0,3237.0,3.1239573]
[1737669018183,3.08854,3237.8,3237.0,3.1239573]
[1737669018589,3.08833,3238.0,3237.1,3.08918]
[1737669018789,3.08833,3238.0,3237.2,3.12370697]
[1737669019018,3.08844,3237.9,3237.2,0.03462697]
[1737669019222,0.61604725,3237.8,3237.2,0.03462697]
[1737669019822,3.08844,3237.9,3237.2,0.03462697]
[1737669020023,3.08802,3238.4,3236.9,0.7826]
[1737669020199,0.61975503,3238.3,3237.5,3.08873]
[1737669020523,3.10386,3238.6,3237.7,0.7768]
[1737669020691,0.61635623,3238.4,3237.7,3.86539]
[1737669020891,0.0161,3238.6,3237.8,0.03412445]
[1737669021127,3.10348,3239.0,3237.8,0.03412445]
[1737669021424,3.08756,3238.8,3237.8,3.03412445]
[1737669021620,3.69412518,3238.6,3237.8,6.12262445]
[1737669022025,3.08756,3238.8,3237.9,3.08839]
[1737669022210,3.08768,3238.7,3238.0,0.03394884]
[1737669022413,0.62315034,3238.8,3238.0,3.12219884]
[1737669022619,3.08796,3238.4,3238.0,0.03394884]
[1737669022824,3.08821,3238.2,3237.4,0.8191]
[1737669023014,3.08821,3238.2,3237.5,3.0]
[1737669023321,3.08821,3238.2,3237.6,0.03243663]
[1737669023697,4.1287484,3238.8,3237.6,0.03243663]
[1737669023698,3.08774,3238.7,3237.7,3.0]
[1737669023894,0.62315034,3238.8,3237.6,0.03243663]
[1737669024094,3.08827,3238.1,3237.8,0.03230635]
[1737669024455,3.08868,3237.7,3237.4,0.8191]
[1737669024923,3.08851,3237.8,3237.5,0.03256448]
[1737669025641,3.08864,3237.7,3237.5,0.03256448]
[1737669025850,3.08851,3237.8,3237.1,3.08911]
[1737669026153,0.61011398,3237.9,3237.6,0.03249933]
[1737669026443,0.61011398,3237.9,3237.7,0.03243419]
[1737669026592,0.61011398,3237.9,3237.3,3.08895]
[1737669026793,3.08791,3238.5,3237.5,3.08872]
[1737669027041,3.08796,3238.4,3237.6,0.80831779]
[1737669027348,3.08808,3238.3,3237.6,3.89700779]
[1737669028020,3.08852,3237.8,3237.6,0.80831779]
[1737669028219,3.08861,3237.7,3237.6,0.03261779]
[1737669028556,3.08861,3237.7,3237.2,0.7757]
[1737669028702,3.08861,3237.7,3237.6,0.0315598]
[1737669029031,3.08861,3237.7,3237.2,0.7757]
[1737669029218,3.08861,3237.7,3237.3,0.03175524]
[1737669029417,3.08861,3237.7,3237.2,0.7757]
[1737669029635,3.08861,3237.7,3237.3,0.03175524]
[1737669029804,0.0161,3238.1,3236.8,0.7757]
[1737669030004,3.08832,3238.0,3236.9,0.0320159]
[1737669030210,3.08886,3237.5,3236.9,0.0320159]
[1737669030726,3.08861,3237.7,3237.0,3.0]
[1737669031022,3.08861,3237.7,3236.9,0.0320159]
[1737669031332,3.08882,3237.5,3236.9,0.0320159]
[1737669031534,3.08861,3237.7,3237.0,3.0]
[1737669031740,3.08844,3237.9,3237.0,6.08927]
[1737669032037,3.08822,3238.2,3237.5,3.08872]
[1737669032344,3.08823,3238.1,3237.6,0.07036258]
[1737669032524,0.310432,3238.2,3237.6,0.07036258]
[1737669032725,0.310432,3238.2,3237.5,3.08871]
[1737669032931,0.310432,3238.2,3237.7,0.07029624]
[1737669032932,3.0883,3238.1,3237.7,0.07029624]
[1737669033126,3.0883,3238.1,3237.6,0.07036258]
[1737669033332,0.3398732,3238.0,3237.8,0.07022991]
[1737669033527,0.3398732,3238.0,3237.7,0.07029624]
[1737669033735,0.3398732,3238.0,3237.9,0.07016358]
[1737669034437,0.3398732,3238.0,3237.5,3.08878]
[1737669034641,3.08882,3237.5,3237.3,0.8244]
[1737669034940,3.08891,3237.4,3236.9,0.8175]
[1737669035103,3.08953,3236.8,3236.5,0.8175]
[1737669035307,3.08935,3237.0,3236.5,0.8175]
[1737669035606,3.08942,3236.9,3236.5,0.8175]
[1737669036007,3.08929,3237.0,3236.5,0.8175]
[1737669036246,3.08924,3237.1,3236.5,0.8175]
[1737669037619,3.08875,3237.6,3236.6,3.08966]
[1737669037841,3.089,3237.3,3236.6,3.08966]
[1737669038312,3.089,3237.3,3236.5,0.8175]
[1737669038509,3.08945,3236.9,3236.5,0.8175]
[1737669039112,3.08953,3236.8,3236.5,0.8175]
[1737669039334,3.08945,3236.9,3236.5,0.8175]
[1737669039535,3.0895,3236.8,3236.5,0.8175]
[1737669039833,3.08963,3236.7,3236.5,0.8175]
[1737669040032,3.0895,3236.8,3236.1,0.7769]
[1737669040033,3.08966,3236.6,3236.1,0.7769]
[1737669040943,3.08966,3236.6,3236.1,3.7769]
[1737669041311,3.08966,3236.6,3236.1,0.7769]
[1737669042041,3.08992,3236.4,3236.1,0.7769]
[1737669042884,3.08966,3236.6,3236.1,0.7769]
[1737669043214,3.08976,3236.5,3236.1,0.7769]
[1737669043549,3.08959,3236.7,3236.1,0.7769]
[1737669043943,3.08967,3236.6,3236.1,0.7769]
[1737669044125,3.08982,3236.5,3236.1,0.7769]
[1737669044519,3.08988,3236.4,3236.1,0.7769]
[1737669044732,0.01721351,3236.3,3236.1,0.7769]
[1737669045951,0.01721351,3236.3,3236.2,3.09004]
[1737669046115,0.01721351,3236.3,3236.1,0.7769]
[1737669046520,0.01721351,3236.3,3236.1,3.867]
[1737669046724,0.01721351,3236.3,3236.2,3.09004]
[1737669047057,0.01721351,3236.3,3236.2,6.91824]
[1737669049018,0.01721351,3236.3,3236.2,0.8282]
[1737669049431,0.01721351,3236.3,3236.2,0.89770417]
[1737669049857,0.01721351,3236.3,3236.2,0.06950417]
[1737669050403,0.01721351,3236.3,3235.9,0.8248]
[1737669050526,0.01721351,3236.3,3236.2,0.06930304]
[1737669050926,0.01721351,3236.3,3235.9,3.8248]
[1737669051141,0.01721351,3236.3,3236.2,0.06930304]
[1737669051365,0.01721351,3236.3,3235.9,0.8248]
[1737669051562,3.41785186,3236.3,3236.2,0.06930304]
[1737669051760,0.32791186,3236.3,3235.4,0.8248]
[1737669051926,3.09035,3235.9,3235.4,0.8248]
[1737669052260,3.09035,3235.9,3235.5,0.06988608]
[1737669053259,3.09035,3235.9,3235.4,0.8248]
[1737669053424,3.09035,3235.9,3235.5,0.06988608]
[1737669053961,3.09045,3235.8,3235.5,0.06988608]
[1737669054168,3.09035,3235.9,3235.5,0.06988608]
[1737669054671,3.09043,3235.8,3235.5,0.06988608]
[1737669054971,3.09035,3235.9,3235.5,0.06988608]
[1737669056171,3.09061,3235.6,3235.5,0.06988608]
[1737669056371,3.10671,3235.6,3235.5,0.06988608]
[1737669056573,3.09119,3235.0,3234.6,0.8216]
[1737669056948,3.09108,3235.2,3234.9,0.23552769]
[1737669057155,3.09119,3235.0,3234.9,0.23552769]
[1737669058242,3.09232,3233.9,3233.2,0.7946]
[1737669058441,3.09232,3233.9,3233.2,3.8875]
[1737669058740,3.09236,3233.8,3233.3,0.06523406]
[1737669058940,3.09244,3233.7,3233.3,0.06523406]
[1737669059145,3.09228,3233.9,3233.2,3.7946]
[1737669059474,3.09228,3233.9,3233.3,0.06523406]
[1737669059775,3.09233,3233.9,3233.3,0.06523406]
[1737669060146,0.55,3233.8,3233.3,0.06523406]
[1737669060372,3.09243,3233.7,3233.3,0.06523406]
[1737669060537,3.09243,3233.7,3233.2,3.0]
[1737669060744,3.09243,3233.7,3233.4,0.06516754]
[1737669060975,0.01721351,3233.8,3233.3,0.06523406]
[1737669061175,3.10955351,3233.8,3233.5,0.06510103]
[1737669061473,3.10855,3233.7,3233.6,0.06503452]
[1737669061680,3.10855,3233.7,3232.9,3.8234]
[1737669061990,0.55,3233.5,3232.4,0.8234]
[1737669062282,3.09331,3232.8,3232.4,0.8234]
[1737669062582,3.09311,3233.0,3232.4,0.8234]
[1737669063578,3.09322,3232.9,3232.4,0.8234]
[1737669063887,3.09318,3233.0,3232.4,0.8234]
[1737669064074,3.09322,3232.9,3232.4,0.8234]
[1737669064275,3.402542,3232.9,3232.4,0.8234]
[1737669064787,0.309322,3232.9,3232.4,0.8234]
[1737669065155,3.402532,3232.9,3232.4,0.8234]
[1737669065357,0.309322,3232.9,3232.4,0.8234]
[1737669065685,0.309322,3232.9,3231.6,0.167039]
[1737669065870,3.09374,3232.4,3232.0,0.8168]
[1737669066066,3.09374,3232.4,3232.0,0.7943]
[1737669066285,0.55,3232.2,3231.6,0.167039]
[1737669066487,3.09428,3231.8,3231.6,0.167039]
[1737669066674,0.0386,3232.3,3231.6,0.167039]
[1737669066875,3.09434,3231.7,3231.6,0.167039]
[1737669068093,3.09402,3232.1,3231.6,0.167039]
[1737669068094,3.09399,3232.1,3231.6,0.167039]
[1737669068391,3.09368,3232.4,3231.7,3.09433]
[1737669068565,3.70835109,3232.6,3231.6,3.167039]
[1737669068766,3.70835109,3232.6,3231.8,3.09422]
[1737669069089,3.09327,3232.9,3232.1,3.09394]
[1737669069308,3.09322,3232.9,3231.8,0.6355669]
[1737669069514,3.13171,3233.0,3232.2,3.09385]
[1737669069736,0.0386,3233.0,3232.3,3.09377]
[1737669069875,0.0386,3233.5,3232.7,3.91011]
[1737669070077,3.10957351,3233.8,3232.7,0.8168]
[1737669070078,0.63354574,3233.7,3232.7,0.8168]
[1737669070388,0.01721351,3233.8,3232.7,1.19848]
[1737669070569,0.01721351,3233.8,3232.5,3.0]
[1737669070774,0.01721351,3233.8,3233.7,3.87533]
[1737669070977,0.01721351,3233.8,3233.7,0.7829]
[1737669071775,0.01721351,3233.8,3233.7,3.7829]
[1737669072009,0.01721351,3233.8,3233.0,3.09303]
[1737669072229,3.09302,3233.1,3232.5,0.8293]
[1737669072374,3.09252,3233.6,3232.5,0.8293]
[1737669072575,3.09279,3233.4,3232.5,6.92287]
[1737669072973,0.01721351,3233.8,3233.2,3.09291]
[1737669073281,0.01721351,3233.8,3232.9,3.0]
[1737669073593,0.01721351,3233.8,3232.5,0.8293]
[1737669073594,3.09273,3233.4,3232.5,0.8293]
[1737669073980,3.09273,3233.4,3232.7,3.0]
[1737669074181,3.09273,3233.4,3232.7,6.09337]
[1737669074802,3.09304,3233.1,3232.5,3.8293]
[1737669075115,3.09292,3233.2,3232.5,3.8293]
[1737669075289,3.09332,3232.8,3232.5,0.8293]
[1737669075490,3.09332,3232.8,3232.0,0.7859]
[1737669075692,3.09358,3232.5,3232.0,0.7859]
[1737669075894,3.09386,3232.2,3232.1,0.06536187]
[1737669076215,3.09423,3231.9,3231.6,0.922739]
[1737669076904,3.09428,3231.8,3231.6,0.922739]
[1737669077088,0.309386,3232.2,3231.6,0.167039]
[1737669077089,3.09414,3232.0,3231.6,0.167039]
[1737669077288,3.09425,3231.8,3231.6,0.167039]
[1737669078626,3.09386,3232.2,3231.6,3.261469]
[1737669078991,3.09354,3232.6,3232.0,3.09404]
[1737669079305,3.09331,3232.8,3232.1,0.06575408]
[1737669079511,3.11062351,3232.7,3232.1,0.84555408]
[1737669079909,3.11060351,3232.7,3232.2,3.0]
[1737669080224,0.01721351,3232.7,3232.1,0.84555408]
[1737669080518,0.01721351,3232.7,3232.6,6.90438]
[1737669080715,3.7008056,3234.6,3233.5,3.84733]
[1737669081026,3.0915,3234.7,3234.0,3.0921]
[1737669081206,3.0915,3234.7,3233.9,3.0]
[1737669081413,3.0915,3234.7,3234.1,3.15578533]
[1737669081597,0.0558,3235.1,3234.3,3.09182]
[1737669081925,3.405802,3235.1,3234.4,3.15524685]
[1737669082124,3.09109,3235.2,3234.5,0.7951]
[1737669082301,3.09127,3235.0,3234.5,0.7951]
[1737669082827,3.09084,3235.4,3234.6,3.15474569]
[1737669082987,3.09093,3235.3,3234.6,0.06318569]
[1737669083184,0.68079999,3235.6,3234.6,0.06318569]
[1737669083388,0.3645193,3235.9,3234.6,0.06318569]
[1737669083389,3.0904,3235.9,3234.6,0.06318569]
[1737669083588,3.09013,3236.1,3235.4,3.09079]
[1737669083817,3.09013,3236.1,3234.7,3.47729857]
[1737669083818,3.09044,3235.8,3234.8,3.09137]
[1737669084018,3.09061,3235.6,3235.5,0.06229959]
[1737669084288,3.09061,3235.6,3234.8,3.09137]
[1737669084516,3.09061,3235.6,3234.9,0.06271942]
[1737669084937,3.09061,3235.6,3234.9,3.15399942]
[1737669085096,3.09052,3235.7,3234.9,0.06271942]
[1737669085302,0.61119639,3236.2,3234.9,0.06271942]
[1737669085685,0.61119639,3236.2,3235.0,3.09111]
[1737669086036,3.09074,3235.5,3235.1,0.06250336]
[1737669086199,0.309074,3235.5,3235.1,0.06250336]
[1737669086399,0.309074,3235.5,3234.6,3.09156]
[1737669086400,3.09091,3235.3,3234.6,3.09156]
[1737669086748,3.09091,3235.3,3235.2,0.06240227]
[1737669087048,3.09102,3235.2,3234.5,0.7951]
[1737669087539,3.09092,3235.3,3234.7,3.0]
[1737669087687,3.09092,3235.3,3234.7,3.09147]
[1737669088109,3.09071,3235.5,3234.9,3.0]
[1737669088767,3.09082,3235.4,3234.9,3.0]
[1737669088951,3.09071,3235.5,3234.9,3.0]
[1737669089316,3.09082,3235.4,3234.9,3.0]
[1737669089516,3.09091,3235.3,3234.6,3.09152]
[1737669089744,3.09082,3235.4,3234.7,3.0]
[1737669089963,3.09113,3235.1,3234.5,0.7951]
[1737669090264,3.09132,3234.9,3234.5,0.7951]
[1737669090811,3.09109,3235.1,3234.5,0.7951]
[1737669090812,3.0909,3235.3,3234.6,3.0915]
[1737669091012,3.0909,3235.3,3234.5,3.7951]
[1737669091210,3.09112,3235.1,3234.5,3.7951]
[1737669091719,3.0909,3235.3,3234.5,6.88672]
[1737669091927,3.0913,3234.9,3234.5,0.7951]
[1737669092125,3.09138,3234.8,3234.1,0.8133]
[1737669092436,3.09138,3234.8,3234.2,3.0]
[1737669092827,3.09111,3235.1,3234.1,0.8133]
[1737669093027,3.09119,3235.0,3234.4,3.0]